bitfinex-derivatives/quotes_BTCF0:USTF0_20251002
["timestamp","ask_amount","ask_price","bid_price","bid_amount"]
[1759421102739,0.05600667,119850.0,119840.0,0.4441881]
[1759421102935,0.03407667,119850.0,119840.0,0.80339546]
[1759421103439,0.05600667,119850.0,119840.0,0.4441881]
[1759421103828,0.45600667,119850.0,119840.0,0.4441881]
[1759421104028,0.54039147,119850.0,119840.0,0.0833881]
[1759421104638,0.54139147,119850.0,119840.0,0.0833881]
[1759421104938,0.01367,119830.0,119820.0,0.4442026]
[1759421105130,0.05593746,119830.0,119820.0,0.0834026]
[1759421105331,0.53933616,119830.0,119820.0,0.0834026]
[1759421105536,0.45593746,119830.0,119820.0,0.0834026]
[1759421105842,0.01367,119820.0,119810.0,0.444209]
[1759421106139,0.0356,119820.0,119810.0,0.444209]
[1759421107037,0.78639638,119820.0,119810.0,0.083409]
[1759421107242,0.4356,119820.0,119810.0,0.444209]
[1759421107942,0.4356,119820.0,119810.0,0.446209]
[1759421108336,0.4366,119820.0,119810.0,0.085409]
[1759421108539,0.4366,119820.0,119810.0,0.446209]
[1759421108739,0.4366,119820.0,119810.0,0.444209]
[1759421109132,0.4366,119820.0,119810.0,0.4442122]
[1759421109133,0.87080158,119820.0,119810.0,0.4442122]
[1759421109340,0.0356,119810.0,119800.0,0.0834151]
[1759421110244,0.86980858,119810.0,119800.0,0.0834151]
[1759421110437,0.1190192,119800.0,119790.0,0.08350632]
[1759421110634,0.83061558,119800.0,119790.0,8.392e-05]
[1759421110838,1.23061558,119800.0,119790.0,8.392e-05]
[1759421111744,1.6446192,119800.0,119790.0,8.392e-05]
[1759421111941,1.23061558,119800.0,119790.0,0.08851002]
[1759421112142,1.99541558,119800.0,119790.0,0.08351002]
[1759421112339,1.99541558,119800.0,119790.0,0.00508392]
[1759421112640,0.0834331,119780.0,119770.0,0.0834358]
[1759421112943,0.83062948,119780.0,119770.0,0.0834358]
[1759421113242,0.0356,119780.0,119770.0,0.0834358]
[1759421113640,0.01367,119770.0,119760.0,0.3608]
[1759421113842,0.0356,119770.0,119760.0,0.083447]
[1759421114034,0.0356,119770.0,119760.0,0.444247]
[1759421114545,0.0356,119770.0,119760.0,0.083447]
[1759421115140,0.02203556,119760.0,119750.0,0.0834497]
[1759421115444,0.02210196,119760.0,119750.0,0.4442497]
[1759421115840,0.00017196,119760.0,119750.0,0.803569]
[1759421116042,6.64e-05,119760.0,119750.0,1.203569]
[1759421116545,6.64e-05,119760.0,119750.0,1.27062849]
[1759421116938,0.01367,119780.0,119750.0,1.61183069]
[1759421117145,0.01367,119790.0,119780.0,0.0834323]
[1759421117347,0.01367,119790.0,119780.0,1.2094323]
[1759421117949,0.01367,119790.0,119780.0,1.56022868]
[1759421118142,0.01367,119790.0,119780.0,0.8442323]
[1759421118335,0.0366,119790.0,119780.0,0.4442324]
[1759421118539,0.0366,119790.0,119780.0,0.0834324]
[1759421118739,0.0376,119790.0,119780.0,0.4442324]
[1759421119147,0.0366,119790.0,119780.0,0.4442324]
[1759421119346,0.1200254,119790.0,119780.0,0.4442324]
[1759421119540,1.23162178,119790.0,119780.0,0.002]
[1759421120050,0.0356,119760.0,119750.0,0.7197684]
[1759421120243,0.0356,119760.0,119750.0,0.4442484]
[1759421120441,0.1190464,119760.0,119740.0,1.1264]
[1759421120648,0.1190464,119760.0,119750.0,0.0834533]
[1759421120838,0.0356,119760.0,119750.0,0.4442533]
[1759421121735,0.1190533,119750.0,119740.0,0.4512564]
[1759421121940,0.52331357,119750.0,119740.0,0.007]
[1759421122145,0.92331357,119750.0,119740.0,0.0904602]
[1759421122347,0.4356,119750.0,119740.0,0.4512602]
[1759421122652,0.01367,119760.0,119750.0,0.0834533]
[1759421122845,0.01367,119760.0,119750.0,0.84851357]
[1759421123240,0.01367,119770.0,119760.0,0.0834463]
[1759421123443,0.01367,119770.0,119760.0,0.84850657]
[1759421123643,0.01367,119770.0,119760.0,0.4442463]
[1759421124853,0.01667,119770.0,119760.0,0.4442463]
[1759421125351,0.00310597,119770.0,119760.0,1.2230963]
[1759421125550,0.00210597,119770.0,119760.0,0.4572963]
[1759421125745,0.02430597,119770.0,119760.0,1.2228963]
[1759421126346,0.002,119770.0,119760.0,1.62707657]
[1759421126550,0.002,119770.0,119760.0,1.6228163]
[1759421126849,0.002,119770.0,119760.0,1.35693588]
[1759421127052,0.002,119770.0,119760.0,2.12253588]
[1759421127253,0.002,119770.0,119760.0,1.71827561]
[1759421127440,0.002,119770.0,119760.0,2.61029299]
[1759421127754,0.01367,119800.0,119790.0,0.0964754]
[1759421128451,0.03693,119800.0,119790.0,0.0964754]
[1759421128847,0.04093,119800.0,119790.0,0.0964754]
[1759421129054,0.1293484,119800.0,119790.0,0.0964754]
[1759421129246,0.04593,119800.0,119790.0,0.0964754]
[1759421129943,0.1293484,119800.0,119790.0,0.0964754]
[1759421130454,0.04593,119800.0,119790.0,0.4572754]
[1759421130852,0.009,119800.0,119790.0,1.26153567]
[1759421131157,0.009,119800.0,119790.0,2.02737567]
[1759421131456,0.009,119800.0,119790.0,2.18227375]
[1759421132349,0.01365,119820.0,119810.0,0.0964614]
[1759421132350,0.03691,119820.0,119810.0,0.0964614]
[1759421132544,0.03691,119820.0,119810.0,0.4572614]
[1759421132747,0.01365,119830.0,119820.0,0.0964545]
[1759421132953,0.01365,119830.0,119820.0,0.86151477]
[1759421133153,0.01365,119840.0,119830.0,0.0833976]
[1759421133349,0.03691,119840.0,119830.0,0.0964476]
[1759421133553,0.03691,119840.0,119830.0,0.4572476]
[1759421133949,0.05727401,119840.0,119830.0,0.4572476]
[1759421134157,0.03691,119840.0,119830.0,0.4572476]
[1759421134455,0.057274,119840.0,119830.0,0.0964476]
[1759421134852,0.030364,119840.0,119830.0,0.4572476]
[1759421135053,0.02,119840.0,119830.0,1.41099002]
[1759421135254,0.02,119840.0,119830.0,2.17775002]
[1759421135551,0.02,119840.0,119830.0,2.18622274]
[1759421135752,0.02,119840.0,119830.0,1.41946274]
[1759421135951,0.02,119840.0,119830.0,2.18614274]
[1759421136156,0.0092813,119840.0,119830.0,2.18614274]
[1759421136353,0.0092813,119840.0,119830.0,1.41946274]
[1759421136657,0.03691,119860.0,119850.0,0.0964336]
[1759421136859,0.03691,119860.0,119850.0,0.4572336]
[1759421138356,0.04991,119860.0,119850.0,0.4572336]
[1759421139449,0.03691,119860.0,119850.0,0.4572336]
[1759421139650,0.03691,119860.0,119850.0,0.4582336]
[1759421140254,0.01365,119860.0,119850.0,0.4582336]
[1759421140453,0.41791027,119870.0,119860.0,0.0833767]
[1759421140454,0.01365,119870.0,119860.0,0.0833767]
[1759421140659,0.03691,119870.0,119860.0,0.86148697]
[1759421140959,0.01365,119870.0,119860.0,0.86148697]
[1759421141156,0.01365,119880.0,119870.0,0.0833697]
[1759421141354,0.01365,119880.0,119870.0,0.4572197]
[1759421141655,0.01365,119880.0,119870.0,0.85947997]
[1759421141853,0.01365,119890.0,119880.0,0.0964127]
[1759421142057,0.01365,119890.0,119880.0,0.4572127]
[1759421142355,0.03691,119890.0,119880.0,0.4572127]
[1759421142758,0.01365,119890.0,119880.0,0.86147297]
[1759421143262,0.01365,119900.0,119890.0,0.0833558]
[1759421143555,0.03691,119900.0,119890.0,0.4572058]
[1759421143762,0.44117027,119900.0,119890.0,0.4572058]
[1759421144249,0.03691,119910.0,119900.0,0.0963989]
[1759421144454,0.03691,119910.0,119900.0,0.4571989]
[1759421145154,0.52451227,119910.0,119900.0,0.0963989]
[1759421145859,0.92451227,119910.0,119900.0,0.0963989]
[1759421146062,0.92451227,119910.0,119900.0,0.0833489]
[1759421146360,0.92851227,119910.0,119900.0,0.0833489]
[1759421146660,1.28931227,119910.0,119900.0,0.0833489]
[1759421146856,0.0833508,119900.0,119890.0,0.0833515]
[1759421147061,0.52452107,119900.0,119890.0,0.0833515]
[1759421147554,0.52452107,119900.0,119890.0,0.0964015]
[1759421147755,0.44117027,119900.0,119890.0,0.0964015]
[1759421148056,0.88531917,119900.0,119890.0,0.0833515]
[1759421150264,1.28531917,119900.0,119890.0,0.0833515]
[1759421150464,0.1202659,119890.0,119880.0,0.0833564]
[1759421150670,1.29008617,119890.0,119880.0,0.0833564]
[1759421150859,1.65088617,119890.0,119880.0,0.0833564]
[1759421151567,1.65088617,119890.0,119870.0,0.0833649]
[1759421151568,0.1202728,119880.0,119870.0,0.0833649]
[1759421151756,0.1202818,119870.0,119860.0,0.0833729]
[1759421152063,0.44117027,119870.0,119860.0,0.0833729]
[1759421152365,0.52454007,119870.0,119860.0,0.0833729]
[1759421154166,0.52454007,119870.0,119860.0,0.0893729]
[1759421154365,0.88534007,119870.0,119860.0,0.0893729]
[1759421154571,0.03691,119870.0,119860.0,0.0893729]
[1759421154756,0.03691,119870.0,119860.0,0.4632229]
[1759421155261,0.03691,119870.0,119860.0,0.86748317]
[1759421155461,0.01365,119870.0,119860.0,1.26748317]
[1759421155661,0.03524,119880.0,119870.0,0.0964197]
[1759421156062,0.03524,119880.0,119870.0,0.4572197]
[1759421156469,0.03524,119880.0,119870.0,0.86147997]
[1759421156864,0.01365,119880.0,119870.0,0.76147997]
[1759421157069,0.01365,119880.0,119870.0,0.84484967]
[1759421157769,0.01365,119880.0,119870.0,0.4405894]
[1759421158072,0.01365,119880.0,119870.0,0.84484967]
[1759421158262,0.01365,119890.0,119880.0,0.0833628]
[1759421158462,0.01365,119890.0,119880.0,0.84842307]
[1759421158658,0.03524,119890.0,119880.0,0.84842307]
[1759421159664,0.03524,119890.0,119880.0,0.85142307]
[1759421159866,0.01365,119890.0,119880.0,0.85142307]
[1759421160070,0.01365,119900.0,119890.0,0.0833558]
[1759421160360,0.01365,119900.0,119890.0,0.84841607]
[1759421160568,0.01339,119910.0,119890.0,1.25688655]
[1759421160864,0.01339,119910.0,119900.0,0.4441489]
[1759421161261,0.01339,119910.0,119900.0,0.84840917]
[1759421161470,0.0337071,119910.0,119900.0,0.84840917]
[1759421161865,0.01339,119910.0,119900.0,0.84840917]
[1759421162064,0.01339,119910.0,119900.0,0.85140917]
[1759421162374,0.01339,119920.0,119910.0,0.083342]
[1759421162672,0.03371662,119920.0,119910.0,0.84840227]
[1759421162874,0.02032662,119920.0,119910.0,0.84840227]
[1759421163065,0.01339,119930.0,119920.0,0.083335]
[1759421163265,0.01339,119930.0,119920.0,1.61351527]
[1759421163468,0.03372174,119930.0,119920.0,1.61351527]
[1759421163674,0.03372082,119930.0,119920.0,1.24839527]
[1759421163871,0.02033082,119930.0,119920.0,2.07985305]
[1759421164665,0.02533082,119930.0,119920.0,2.07985305]
[1759421164869,0.03033082,119930.0,119920.0,2.07985305]
[1759421165174,0.03033082,119930.0,119920.0,2.07965305]
[1759421165572,0.03033082,119930.0,119920.0,2.16805496]
[1759421165768,0.02240495,119940.0,119930.0,0.0833281]
[1759421165968,0.05225402,119950.0,119940.0,0.0833211]
[1759421166276,0.02240495,119950.0,119940.0,1.62536236]
[1759421166979,0.06564402,119960.0,119950.0,0.0833142]
[1759421167168,0.06564402,119960.0,119950.0,1.62523546]
[1759421167778,0.03579495,119960.0,119950.0,0.86015546]
[1759421167978,0.03579495,119960.0,119950.0,1.62519546]
[1759421168675,0.03579495,119960.0,119950.0,1.63319546]
[1759421169567,0.03579495,119960.0,119950.0,1.63375075]
[1759421169779,0.03579495,119960.0,119950.0,1.64375075]
[1759421170080,0.02240495,119960.0,119950.0,2.04375075]
[1759421170873,0.05225402,119970.0,119960.0,0.0833072]
[1759421171079,0.02240495,119970.0,119960.0,0.86014846]
[1759421171479,0.02240495,119970.0,119960.0,1.34351305]
[1759421171676,5e-08,119980.0,119970.0,0.0833003]
[1759421171881,5e-08,119980.0,119970.0,1.62466156]
[1759421172178,0.04323907,119990.0,119970.0,1.62466156]
[1759421172179,0.04323907,119990.0,119980.0,0.0832934]
[1759421172374,0.03323861,119990.0,119980.0,1.63328214]
[1759421172580,0.03323861,119990.0,119980.0,2.03328214]
[1759421172881,0.08821605,120000.0,119990.0,0.0914564]
[1759421173077,0.06482907,120000.0,119990.0,1.22893487]
[1759421173581,0.04323907,120000.0,119990.0,1.22893487]
[1759421173779,0.04323907,120000.0,119990.0,0.46401487]
[1759421173974,0.04323907,120000.0,119990.0,1.22885487]
[1759421174275,0.06482907,120000.0,119990.0,0.86797487]
[1759421174480,0.06582907,120000.0,119990.0,0.86797487]
[1759421174676,0.06582907,120000.0,119990.0,0.93554639]
[1759421174878,0.06582907,120000.0,119990.0,1.30034639]
[1759421174879,0.04423907,120000.0,119990.0,1.30034639]
[1759421175389,0.04423907,120000.0,119990.0,1.70460666]
[1759421175684,0.04423907,120000.0,119990.0,1.30034639]
[1759421176078,0.03084907,120000.0,119990.0,1.30034639]
[1759421176273,0.03084907,120000.0,119990.0,1.70460666]
[1759421176471,0.04423907,120000.0,119990.0,1.69998639]
[1759421176672,0.04423907,120000.0,119990.0,2.10424666]
[1759421177082,0.01439,120000.0,119990.0,2.10424666]
[1759421177381,0.01439,120000.0,119990.0,1.69998639]
[1759421177579,0.01439,120000.0,119990.0,0.93558639]
[1759421177778,0.001,120000.0,119990.0,2.18750346]
[1759421177984,0.0202923,120000.0,119990.0,2.28168081]
[1759421178982,0.0202923,120000.0,119990.0,1.11310054]
[1759421179180,0.0202923,120000.0,119990.0,2.28268081]
[1759421180187,0.0202923,120000.0,119990.0,1.51736081]
[1759421180483,0.0202923,120000.0,119990.0,2.22816778]
[1759421180989,0.0202923,120000.0,119990.0,1.87830054]
[1759421181290,0.0202923,120000.0,119990.0,2.22816778]
[1759421182386,0.01029306,120000.0,119990.0,2.22816778]
[1759421183178,6e-08,120000.0,119990.0,2.22816778]
[1759421183381,0.06482907,120020.0,120010.0,0.0914426]
[1759421183689,0.06482907,120020.0,120010.0,1.22872107]
[1759421184389,0.04323907,120020.0,120010.0,1.22872107]
[1759421184687,0.05223907,120020.0,120010.0,1.22872107]
[1759421184881,0.07536698,120020.0,120010.0,1.22872107]
[1759421185288,0.04679318,120020.0,120010.0,1.67054189]
[1759421185486,0.04679318,120020.0,120010.0,1.32067465]
[1759421185688,0.04679318,120020.0,120010.0,1.32907421]
[1759421185881,0.04679318,120020.0,120010.0,1.32396421]
[1759421186282,0.04679318,120020.0,120010.0,1.32352421]
[1759421186581,0.05966318,120020.0,120010.0,1.32344421]
[1759421186985,0.04679318,120020.0,120010.0,1.32344421]
[1759421187484,0.05966318,120020.0,120010.0,1.32344421]
[1759421188390,0.10464016,120020.0,120010.0,1.32344421]
[1759421189092,0.10464016,120020.0,120010.0,0.55924421]
[1759421189288,0.07484698,120020.0,120010.0,1.32304421]
[1759421189694,0.05971364,120020.0,120010.0,1.32304421]
[1759421190594,0.05971364,120020.0,120010.0,1.32430478]
[1759421190795,0.10469062,120020.0,120010.0,1.32430478]
[1759421191097,0.07484698,120020.0,120010.0,1.32430478]
[1759421191795,0.07484698,120020.0,120010.0,1.32426478]
[1759421191990,0.07484698,120020.0,120010.0,1.32426477]
[1759421192397,0.06197698,120020.0,120010.0,1.32426477]
[1759421192895,8e-08,120030.0,120020.0,0.0832656]
[1759421193096,0.01287008,120030.0,120020.0,0.09628463]
[1759421193302,0.01287,120030.0,120020.0,0.18474507]
[1759421193502,0.01287,120030.0,120020.0,0.90634507]
[1759421194099,0.02087,120030.0,120020.0,0.90634507]
[1759421194400,0.02887,120030.0,120020.0,0.90634507]
[1759421194804,0.02887,120030.0,120020.0,1.66962507]
[1759421195602,0.01287,120030.0,120020.0,1.66962507]
[1759421196613,0.030748,120040.0,120030.0,0.0832584]
[1759421196809,0.03051225,120040.0,120030.0,0.58414177]
[1759421197009,0.05284225,120040.0,120030.0,0.58414177]
[1759421197204,0.05284225,120040.0,120030.0,0.52528591]
[1759421197408,0.05284225,120040.0,120030.0,0.51226688]
[1759421198111,0.05284225,120040.0,120030.0,0.55626031]
[1759421198710,0.05284225,120040.0,120030.0,0.56126031]
[1759421198906,0.88596119,120040.0,120030.0,0.56126031]
[1759421199105,0.45284225,120040.0,120030.0,0.20546031]
[1759421199402,0.45284225,120040.0,120030.0,0.19077265]
[1759421199719,0.88596119,120040.0,120030.0,0.1665576]
[1759421199904,0.53609395,120040.0,120030.0,0.12256417]
[1759421200099,1.24676119,120040.0,120030.0,0.12256417]
[1759421201111,1.24676119,120040.0,120030.0,0.14451823]
[1759421201312,1.24676119,120040.0,120030.0,0.11521246]
[1759421201607,0.89689395,120040.0,120030.0,0.14451823]
[1759421201907,0.88596119,120040.0,120030.0,0.12256417]
[1759421202107,0.81364225,120040.0,120030.0,0.14450181]
[1759421202410,0.05284225,120040.0,120030.0,0.12256417]
[1759421203206,0.05284225,120040.0,120030.0,0.4759862]
[1759421203508,0.05284225,120040.0,120030.0,0.47598866]
[1759421203702,0.05284225,120040.0,120030.0,0.11518866]
[1759421203908,0.05284225,120040.0,120030.0,0.47598866]
[1759421204099,0.13609395,120040.0,120030.0,0.47598866]
[1759421204299,0.84676119,120040.0,120030.0,0.11518866]
[1759421204606,0.48596119,120040.0,120030.0,0.11518866]
[1759421204805,0.40270949,120040.0,120030.0,0.11518866]
[1759421205006,0.41364225,120040.0,120030.0,0.11518866]
[1759421205213,0.41364225,120040.0,120030.0,0.18324395]
[1759421205512,0.41364225,120040.0,120030.0,0.11518866]
[1759421205913,0.05284225,120040.0,120030.0,0.11518866]
[1759421207408,0.05284225,120040.0,120030.0,0.47598866]
[1759421207809,0.05284225,120040.0,120030.0,0.18175203]
[1759421208713,0.05284225,120040.0,120030.0,0.54255203]
[1759421209616,0.05284225,120040.0,120030.0,0.52062177]
[1759421210319,0.05284225,120040.0,120030.0,0.15982177]
[1759421211414,0.13609405,120040.0,120030.0,0.15982177]
[1759421212015,0.05284225,120040.0,120030.0,0.15982177]
[1759421212617,0.76350949,120040.0,120030.0,0.15982177]
[1759421212919,0.40270949,120040.0,120030.0,0.15982177]
[1759421213216,0.76350949,120040.0,120030.0,0.15982177]
[1759421213717,0.05284225,120040.0,120030.0,0.15982177]
[1759421213917,0.40270949,120040.0,120030.0,0.15982177]
[1759421214314,0.76350949,120040.0,120030.0,0.15982177]
[1759421214718,0.05284225,120040.0,120030.0,0.15982177]
[1759421214914,0.40270949,120040.0,120030.0,0.15982177]
[1759421215114,0.76350949,120040.0,120030.0,0.15982177]
[1759421215619,1.24676129,120040.0,120030.0,0.0932587]
[1759421217115,1.24676129,120040.0,120030.0,0.01]
[1759421217322,0.1199487,120030.0,120020.0,0.10519196]
[1759421217516,1.59185594,120030.0,120020.0,0.02193026]
[1759421217821,0.1199556,120020.0,120010.0,0.11257417]
[1759421218021,0.46982284,120020.0,120010.0,0.11257417]
[1759421218320,0.4807556,120020.0,120010.0,0.11257417]
[1759421218518,1.23062284,120020.0,120010.0,0.05125072]
[1759421218719,1.23062284,120020.0,120010.0,0.02930577]
[1759421218913,1.23062284,120020.0,120000.0,0.12727003]
[1759421218914,0.1199626,120010.0,120000.0,0.1565758]
[1759421219114,1.2394001,120010.0,120000.0,0.1565758]
[1759421219310,1.99194984,120010.0,120000.0,0.1565758]
[1759421219511,1.99194984,120010.0,120000.0,0.11258237]
[1759421219915,1.23062984,120010.0,120000.0,0.11258237]
[1759421220114,1.23062984,120010.0,120000.0,0.48807003]
[1759421220115,0.79789,120010.0,120000.0,0.48807003]
[1759421220315,0.03669,120010.0,120000.0,0.12727003]
[1759421220517,0.79789,120010.0,120000.0,0.12727003]
[1759421220722,0.79789,120010.0,120000.0,0.15655914]
[1759421220723,1.2419625,120010.0,120000.0,0.15655914]
[1759421221215,0.03869,120010.0,120000.0,0.48807003]
[1759421221411,0.80001,120010.0,120000.0,0.48807003]
[1759421221721,0.01562,120010.0,120000.0,1.19394384]
[1759421221910,0.01562,120010.0,120000.0,1.2527997]
[1759421222112,0.01362,120020.0,120010.0,0.0832725]
[1759421222321,0.01362,120030.0,120020.0,0.0832656]
[1759421222522,0.56045,120030.0,120020.0,0.5173606]
[1759421222717,0.01362,120030.0,120020.0,0.5173606]
[1759421222918,0.03669,120030.0,120020.0,0.4880426]
[1759421223124,0.38655724,120030.0,120020.0,0.4880426]
[1759421223425,0.83061594,120030.0,120020.0,0.1272426]
[1759421223921,0.83061594,120030.0,120020.0,0.1565804]
[1759421224224,1.2421087,120030.0,120020.0,0.1302426]
[1759421224918,1.59197594,120030.0,120020.0,0.1312426]
[1759421225221,0.79793,120030.0,120020.0,0.0872656]
[1759421225411,0.03669,120030.0,120020.0,0.14612146]
[1759421225820,0.79793,120030.0,120020.0,0.14212146]
[1759421226015,0.03669,120030.0,120020.0,0.50692146]
[1759421226224,0.02669452,120030.0,120020.0,0.4660256]
[1759421226517,0.78789452,120030.0,120020.0,0.4660256]
[1759421226718,0.00362452,120030.0,120020.0,0.4660256]
[1759421226925,0.00362452,120030.0,120020.0,0.4570256]
[1759421227128,0.00362452,120030.0,120020.0,0.4620256]
[1759421227429,0.02669452,120030.0,120020.0,0.4570256]
[1759421227719,0.02669452,120030.0,120020.0,0.4610256]
[1759421227915,0.02669452,120030.0,120020.0,0.15914049]
[1759421228115,0.02669452,120030.0,120020.0,0.4610256]
[1759421228513,0.02669452,120030.0,120020.0,0.51994219]
[1759421228913,0.00362452,120030.0,120020.0,0.51994219]
[1759421229118,0.02669452,120030.0,120020.0,0.51994219]
[1759421229320,0.02669452,120030.0,120020.0,0.4610256]
[1759421231922,0.02469452,120030.0,120020.0,0.4610256]
[1759421232327,0.02469452,120030.0,120020.0,0.1002256]
[1759421232728,0.02469452,120030.0,120020.0,0.0872656]
[1759421232729,0.45782026,120030.0,120020.0,0.0872656]
[1759421233027,0.02469452,120030.0,120020.0,0.1034256]
[1759421233225,1.21858026,120030.0,120020.0,0.0872656]
[1759421233529,1.57938026,120030.0,120020.0,0.0872656]
[1759421234329,1.22951302,120030.0,120020.0,0.0872656]
[1759421234543,1.57938026,120030.0,120020.0,0.0872656]
[1759421235430,1.57934026,120030.0,120020.0,0.0872656]
[1759421235628,1.22947302,120030.0,120020.0,0.0872656]
[1759421235818,0.02469452,120030.0,120020.0,0.4642256]
[1759421236018,0.78533452,120030.0,120020.0,0.4642256]
[1759421236230,0.78533452,120030.0,120020.0,0.16234219]
[1759421236626,0.86859282,120030.0,120020.0,0.16234219]
[1759421236822,0.10795282,120030.0,120020.0,0.16234219]
[1759421237031,0.78517452,120030.0,120020.0,0.52314219]
[1759421237627,0.78517452,120030.0,120020.0,0.4642256]
[1759421237824,0.78517452,120030.0,120020.0,0.52314219]
[1759421238226,0.7716392,120030.0,120020.0,0.52314219]
[1759421238426,0.7852592,120030.0,120020.0,0.52314219]
[1759421238730,0.0247792,120030.0,120020.0,0.52314219]
[1759421239027,0.7851792,120030.0,120020.0,0.52314219]
[1759421239430,0.0247792,120030.0,120020.0,0.52314219]
[1759421240133,0.0247792,120030.0,120020.0,0.16234219]
[1759421240833,0.8684375,120030.0,120020.0,0.16234219]
[1759421241036,0.1080375,120030.0,120020.0,0.16234219]
[1759421241331,0.8684775,120030.0,120020.0,0.16234219]
[1759421241833,0.1080375,120030.0,120020.0,0.16234219]
[1759421242030,0.8684774,120030.0,120020.0,0.16234219]
[1759421242229,1.27097381,120030.0,120020.0,0.16234219]
[1759421242431,1.27097381,120030.0,120020.0,0.1034256]
[1759421242830,0.8684774,120030.0,120020.0,0.16234219]
[1759421243231,0.8684774,120030.0,120020.0,0.14618219]
[1759421243431,0.8684774,120030.0,120020.0,0.0872656]
[1759421243634,0.8684774,120030.0,120020.0,0.1100356]
[1759421243836,1.18767561,120030.0,120020.0,0.4708356]
[1759421244031,1.27077391,120030.0,120020.0,0.52975219]
[1759421244335,1.2682375,120030.0,120020.0,0.16895179]
[1759421244636,1.67081391,120030.0,120020.0,0.16895179]
[1759421245531,0.8683175,120030.0,120020.0,0.16895179]
[1759421246334,1.19032642,120030.0,120020.0,0.16895179]
[1759421246840,1.55112642,120030.0,120020.0,0.14618179]
[1759421247140,2.27313534,120030.0,120020.0,0.04824731]
[1759421247343,2.59514426,120030.0,120020.0,0.01324731]
[1759421247528,0.0832652,120020.0,120010.0,0.05891659]
[1759421247833,1.44625196,120020.0,120010.0,0.05891659]
[1759421248039,1.91199493,120020.0,120010.0,0.05891659]
[1759421248235,2.67247493,120020.0,120010.0,0.05891659]
[1759421248436,0.1194321,120010.0,120000.0,0.14218969]
[1759421248637,1.11071232,120010.0,120000.0,0.0832731]
[1759421249741,0.46669448,120010.0,120000.0,0.1052831]
[1759421250036,0.86661448,120010.0,120000.0,0.1052831]
[1759421250240,1.1886234,120010.0,120000.0,0.1052831]
[1759421250539,1.1886234,120010.0,120000.0,0.1072831]
[1759421251042,1.1886234,120010.0,120000.0,0.16628617]
[1759421252643,1.1886234,120010.0,120000.0,0.14427617]
[1759421253137,1.5494234,120010.0,120000.0,0.14428207]
[1759421253942,1.5494234,120010.0,120000.0,0.16629207]
[1759421254737,1.5494234,120010.0,120000.0,0.14428207]
[1759421255141,1.87143232,120010.0,120000.0,0.002]
[1759421255345,1.11071232,120010.0,120000.0,0.06100307]
[1759421255544,1.87099232,120010.0,120000.0,0.06100307]
[1759421256048,1.87095232,120010.0,120000.0,0.06100307]
[1759421257350,0.4279034,120010.0,120000.0,0.16629217]
[1759421257549,1.1881434,120010.0,120000.0,0.16629217]
[1759421257952,1.1880234,120010.0,120000.0,0.48830109]
[1759421258350,1.1880234,120010.0,120000.0,0.16629217]
[1759421258555,1.17448582,120010.0,120000.0,0.16629217]
[1759421258850,0.41436582,120010.0,120000.0,0.16629217]
[1759421259050,1.17456582,120010.0,120000.0,0.48830109]
[1759421259648,1.17456582,120010.0,120000.0,0.16629217]
[1759421260349,1.54383231,120010.0,120000.0,0.08301307]
[1759421260749,1.2133569,120010.0,120000.0,0.08301307]
[1759421260949,1.53524582,120010.0,120000.0,0.16629217]
[1759421261946,1.85725474,120010.0,120000.0,0.002]
[1759421262145,2.25725474,120010.0,120000.0,0.002]
[1759421262347,1.85725474,120010.0,120000.0,0.002]
[1759421262645,2.26548088,120010.0,120000.0,0.002]
[1759421262843,1.86548088,120010.0,120000.0,0.002]
[1759421263044,1.86548088,120010.0,120000.0,0.06100307]
[1759421263245,1.86548088,120010.0,120000.0,0.002]
[1759421263444,0.0832791,120000.0,119990.0,0.05900307]
[1759421263649,0.119446,119990.0,119980.0,0.15738243]
[1759421263853,1.87434574,119990.0,119980.0,0.07409233]
[1759421264048,2.27434574,119990.0,119980.0,0.07409233]
[1759421264448,1.51426574,119990.0,119980.0,0.07409233]
[1759421264647,2.27434574,119990.0,119980.0,0.07409233]
[1759421265542,2.27434574,119990.0,119980.0,0.00407323]
[1759421266055,2.27426574,119990.0,119980.0,0.08736613]
[1759421266248,2.27426574,119990.0,119980.0,0.00407323]
[1759421266648,2.27426574,119990.0,119980.0,0.00107323]
[1759421266957,1.55229682,119990.0,119980.0,0.16842579]
[1759421267145,0.79225682,119990.0,119980.0,0.16842579]
[1759421267350,1.55221682,119990.0,119980.0,0.10937613]
[1759421267546,1.87422574,119990.0,119980.0,0.00407323]
[1759421267851,1.87422574,119990.0,119980.0,0.05912125]
[1759421268353,2.27422574,119990.0,119980.0,0.05912125]
[1759421268551,0.106093,119980.0,119970.0,0.0740191]
[1759421268854,0.1194668,119960.0,119950.0,0.10362674]
[1759421269055,1.88460464,119960.0,119950.0,0.10362674]
[1759421269449,1.52380464,119960.0,119950.0,0.10362674]
[1759421269649,1.95148332,119960.0,119950.0,0.10362674]
[1759421269847,1.88476116,119960.0,119950.0,0.12563674]
[1759421270048,1.24074332,119960.0,119950.0,0.02201]
[1759421270246,0.88333783,119960.0,119950.0,0.02201]
[1759421270448,1.64373783,119960.0,119950.0,0.02201]
[1759421270752,0.1194802,119950.0,119940.0,0.1053308]
[1759421271856,0.0228,119950.0,119940.0,1.28182531]
[1759421272053,0.78308,119950.0,119940.0,1.28182531]
[1759421272357,0.78308,119950.0,119940.0,1.29182531]
[1759421272562,0.87994342,119960.0,119950.0,0.1180238]
[1759421273751,0.87994342,119960.0,119950.0,0.1250238]
[1759421273950,0.87994342,119960.0,119950.0,0.1320238]
[1759421275054,0.10618342,119960.0,119950.0,0.1320238]
[1759421275260,0.86662342,119960.0,119950.0,0.1320238]
[1759421276055,1.28302793,119960.0,119950.0,0.1193238]
[1759421276361,1.64382793,119960.0,119950.0,0.014]
[1759421276560,1.64382793,119960.0,119950.0,0.0973138]
[1759421277056,1.64382793,119960.0,119950.0,0.014]
[1759421277864,1.24083342,119960.0,119950.0,0.014]
[1759421278055,1.64382793,119960.0,119950.0,0.014]
[1759421279760,1.64382793,119960.0,119950.0,0.0973139]
[1759421280365,1.64350793,119960.0,119950.0,0.1194039]
[1759421280955,1.64350793,119960.0,119950.0,0.0973139]
[1759421281667,1.24051342,119960.0,119950.0,0.0973139]
[1759421281870,0.88338793,119960.0,119950.0,0.1194039]
[1759421282068,7.652e-05,119960.0,119950.0,1.29613841]
[1759421282472,0.47355652,119960.0,119950.0,1.29613841]
[1759421282670,7.652e-05,119960.0,119950.0,1.29613841]
[1759421285464,7.652e-05,119960.0,119950.0,1.47054932]
[1759421285670,0.64348,119990.0,119980.0,0.118323]
[1759421285869,0.28268,119990.0,119980.0,0.118323]
[1759421286065,0.28268,119990.0,119980.0,0.479123]
[1759421286573,0.28268,119990.0,119980.0,0.48766349]
[1759421286974,0.28668,119990.0,119980.0,0.479123]
[1759421287577,0.02548,119990.0,119980.0,0.54496126]